[Event "*** Titled Tuesday Blitz"]
[Site "Chess.com"]
[Date "2020.01.07"]
[Round "6"]
[White "BeanScreen"]
[Black "BjarkeSahl"]
[Result "0-1"]
[WhiteElo "2389"]
[BlackElo "2212"]
[TimeControl "180+2"]
[EndTime "14:23:02 PST"]
[Termination "BjarkeSahl won by resignation"]

1. e4 {[%clk 0:03:01.8]} 1... c5 {[%clk 0:03:00.2]} 2. Nf3 {[%clk 0:03:03.2]}
2... Nc6 {[%clk 0:03:00.9]} 3. Nc3 {[%clk 0:03:04.3]} 3... Nf6 {[%clk
0:02:59.9]} 4. Bb5 {[%clk 0:03:03.9]} 4... Nd4 {[%clk 0:03:00.4]} 5. e5 {[%clk
0:03:01.9]} 5... Nxb5 {[%clk 0:03:00.4]} 6. Nxb5 {[%clk 0:03:03.2]} 6... Nd5
{[%clk 0:03:01.7]} 7. Ng5 {[%clk 0:03:04.6]} 7... f5 {[%clk 0:02:30.2]} 8. e6
{[%clk 0:01:26.7]} 8... dxe6 {[%clk 0:02:18.6]} 9. Qe2 {[%clk 0:01:26]} 9... Qb6
{[%clk 0:01:36.8]} 10. c4 {[%clk 0:01:26.4]} 10... Nb4 {[%clk 0:01:30.3]} 11. d4
{[%clk 0:00:59.3]} 11... a6 {[%clk 0:01:24.2]} 12. dxc5 {[%clk 0:00:42.7]} 12...
Qxc5 {[%clk 0:01:12.7]} 13. Be3 {[%clk 0:00:43.6]} 13... Qc6 {[%clk 0:01:01.4]}
14. Nd4 {[%clk 0:00:33.7]} 14... Qxg2 {[%clk 0:00:59.8]} 15. O-O-O {[%clk
0:00:34.7]} 15... Nc6 {[%clk 0:00:41.4]} 16. Ndxe6 {[%clk 0:00:20.8]} 16... Bxe6
{[%clk 0:00:40.1]} 17. Nxe6 {[%clk 0:00:15.8]} 17... Rc8 {[%clk 0:00:40.9]} 18.
Ng5 {[%clk 0:00:05.8]} 18... Ne5 {[%clk 0:00:36]} 19. Bd4 {[%clk 0:00:03.8]}
19... Nxc4 {[%clk 0:00:30.9]} 20. Kb1 {[%clk 0:00:04.6]} 20... Rc6 {[%clk
0:00:24.5]} 21. Rc1 {[%clk 0:00:04.9]} 21... Qd5 {[%clk 0:00:24.8]} 22. Bc3
{[%clk 0:00:06]} 22... h6 {[%clk 0:00:23.3]} 23. Qh5+ {[%clk 0:00:06.8]} 23...
g6 {[%clk 0:00:23.9]} 24. Qxg6+ {[%clk 0:00:08]} 24... Rxg6 {[%clk 0:00:24.1]}
0-1

[Event "*** Titled Tuesday Blitz"]
[Site "Chess.com"]
[Date "2020.01.07"]
[Round "6"]
[White "Caisachess"]
[Black "CM_Perligero"]
[Result "1-0"]
[WhiteElo "2370"]
[BlackElo "2098"]
[TimeControl "180+2"]
[EndTime "14:23:11 PST"]
[Termination "Caisachess won on time"]

1. e4 {[%clk 0:03:01.9]} 1... c6 {[%clk 0:02:58.8]} 2. Nc3 {[%clk 0:03:01.5]}
2... d6 {[%clk 0:03:00.7]} 3. d4 {[%clk 0:03:00.8]} 3... g6 {[%clk 0:02:56.5]}
4. Be3 {[%clk 0:02:57.6]} 4... Bg7 {[%clk 0:02:58.4]} 5. Qd2 {[%clk 0:02:56.7]}
5... Nf6 {[%clk 0:02:57.8]} 6. h3 {[%clk 0:02:56.2]} 6... Nbd7 {[%clk
0:02:54.8]} 7. a4 {[%clk 0:02:56.5]} 7... a5 {[%clk 0:02:53.5]} 8. Nf3 {[%clk
0:02:50.4]} 8... O-O {[%clk 0:02:52.7]} 9. Be2 {[%clk 0:02:50]} 9... Qc7 {[%clk
0:02:50.2]} 10. O-O {[%clk 0:02:50.8]} 10... e5 {[%clk 0:02:30]} 11. Rad1 {[%clk
0:02:47.1]} 11... Nh5 {[%clk 0:02:25.4]} 12. Nh2 {[%clk 0:02:41.8]} 12... exd4
{[%clk 0:02:16.1]} 13. Bxd4 {[%clk 0:02:41.4]} 13... Nhf6 {[%clk 0:02:13.9]} 14.
f4 {[%clk 0:02:37.7]} 14... Re8 {[%clk 0:02:11.5]} 15. Bf3 {[%clk 0:02:36.4]}
15... Nc5 {[%clk 0:02:07.3]} 16. Rfe1 {[%clk 0:02:35.8]} 16... Qb6 {[%clk
0:01:49.1]} 17. b3 {[%clk 0:02:26.3]} 17... Be6 {[%clk 0:01:28.8]} 18. Qf2
{[%clk 0:02:24]} 18... Rad8 {[%clk 0:01:26]} 19. e5 {[%clk 0:02:19.7]} 19... Nd5
{[%clk 0:01:20.3]} 20. Nxd5 {[%clk 0:02:19.1]} 20... Bxd5 {[%clk 0:01:18.8]} 21.
Bxd5 {[%clk 0:02:18.4]} 21... cxd5 {[%clk 0:01:18.2]} 22. exd6 {[%clk
0:02:19.2]} 22... Bxd4 {[%clk 0:01:07.9]} 23. Qxd4 {[%clk 0:02:05.1]} 23...
Rxe1+ {[%clk 0:01:04.1]} 24. Rxe1 {[%clk 0:02:05]} 24... Qxd6 {[%clk 0:01:03.5]}
25. Nf3 {[%clk 0:01:56]} 25... Ne4 {[%clk 0:00:53.3]} 26. Rd1 {[%clk 0:01:53.9]}
26... Qxf4 {[%clk 0:00:51.4]} 27. Rf1 {[%clk 0:01:47]} 27... Qg3 {[%clk
0:00:35.4]} 28. Ne5 {[%clk 0:01:36.7]} 28... Ng5 {[%clk 0:00:32]} 29. Kh1 {[%clk
0:01:31.1]} 29... f6 {[%clk 0:00:25.9]} 30. Nd3 {[%clk 0:01:25.8]} 30... Ne4
{[%clk 0:00:23.9]} 31. c4 {[%clk 0:01:19]} 31... Qh4 {[%clk 0:00:02.2]} 32. Kg1
{[%clk 0:01:11.2]} 1-0

[Event "*** Titled Tuesday Blitz"]
[Site "Chess.com"]
[Date "2020.01.07"]
[Round "6"]
[White "Gabrielian_Artur"]
[Black "vova-79"]
[Result "1-0"]
[WhiteElo "2788"]
[BlackElo "2538"]
[TimeControl "180+2"]
[EndTime "14:23:25 PST"]
[Termination "Gabrielian_Artur won by resignation"]

1. d4 {[%clk 0:03:01.9]} 1... d5 {[%clk 0:03:00]} 2. c4 {[%clk 0:03:02.1]} 2...
c6 {[%clk 0:03:00.4]} 3. Nf3 {[%clk 0:03:02.7]} 3... Nf6 {[%clk 0:03:01]} 4. Nc3
{[%clk 0:03:03.1]} 4... e6 {[%clk 0:03:01.3]} 5. g3 {[%clk 0:03:03.9]} 5... dxc4
{[%clk 0:03:00.2]} 6. Bg2 {[%clk 0:03:04.9]} 6... b5 {[%clk 0:03:00.2]} 7. Ne5
{[%clk 0:03:05.8]} 7... Nd5 {[%clk 0:03:00.1]} 8. O-O {[%clk 0:03:05.9]} 8...
Bb7 {[%clk 0:03:00]} 9. a4 {[%clk 0:03:06.3]} 9... a6 {[%clk 0:02:59.1]} 10. e4
{[%clk 0:03:06.6]} 10... Nxc3 {[%clk 0:02:38.4]} 11. bxc3 {[%clk 0:03:08.5]}
11... Be7 {[%clk 0:02:39]} 12. Rb1 {[%clk 0:03:08]} 12... Qc8 {[%clk 0:02:37.8]}
13. Qg4 {[%clk 0:03:08.2]} 13... Bf6 {[%clk 0:02:24.6]} 14. Ba3 {[%clk
0:02:57.4]} 14... Nd7 {[%clk 0:02:19.8]} 15. f4 {[%clk 0:02:51.4]} 15... h5
{[%clk 0:02:04.8]} 16. Qh3 {[%clk 0:02:50.2]} 16... Be7 {[%clk 0:02:02.4]} 17.
Bxe7 {[%clk 0:02:40.5]} 17... Kxe7 {[%clk 0:02:02.5]} 18. f5 {[%clk 0:02:11.7]}
18... Nf6 {[%clk 0:01:31.9]} 19. fxe6 {[%clk 0:02:12]} 19... Qxe6 {[%clk
0:01:31.5]} 20. Qxe6+ {[%clk 0:02:11.7]} 20... Kxe6 {[%clk 0:01:31.3]} 21. Nxc4
{[%clk 0:02:12.7]} 21... h4 {[%clk 0:01:23]} 22. Na5 {[%clk 0:02:09.6]} 22...
Rab8 {[%clk 0:01:14.9]} 23. c4 {[%clk 0:02:04.9]} 23... hxg3 {[%clk 0:01:13.2]}
24. hxg3 {[%clk 0:02:06.1]} 24... Ba8 {[%clk 0:01:12]} 25. e5 {[%clk 0:02:02.4]}
25... Ng4 {[%clk 0:01:06.1]} 26. Nxc6 {[%clk 0:01:38.4]} 26... Bxc6 {[%clk
0:01:01.9]} 27. d5+ {[%clk 0:01:38.3]} 27... Kxe5 {[%clk 0:00:55.8]} 28. dxc6
{[%clk 0:01:37.1]} 28... Ne3 {[%clk 0:00:44.1]} 29. Rbe1 {[%clk 0:01:35]} 29...
Kd4 {[%clk 0:00:41.7]} 30. Rf4+ {[%clk 0:01:34.9]} 30... Kd3 {[%clk 0:00:41.6]}
31. Rf3 {[%clk 0:01:30.4]} 31... Rhe8 {[%clk 0:00:37.9]} 32. cxb5 {[%clk
0:01:26.2]} 32... axb5 {[%clk 0:00:36.5]} 33. Bh3 {[%clk 0:01:26.9]} 33... Kd2
{[%clk 0:00:30.1]} 34. c7 {[%clk 0:01:21.9]} 34... Ra8 {[%clk 0:00:20.7]} 35.
Ra1 {[%clk 0:01:13.6]} 35... bxa4 {[%clk 0:00:20]} 36. Ra2+ {[%clk 0:01:12.6]}
36... Ke1 {[%clk 0:00:18.5]} 37. c8=Q {[%clk 0:01:09.4]} 37... Raxc8 {[%clk
0:00:17.4]} 38. Bxc8 {[%clk 0:01:10.4]} 1-0

[Event "*** Titled Tuesday Blitz"]
[Site "Chess.com"]
[Date "2020.01.07"]
[Round "6"]
[White "JozefKneht"]
[Black "The_Chess_Coach"]
[Result "0-1"]
[WhiteElo "2398"]
[BlackElo "2221"]
[TimeControl "180+2"]
[EndTime "14:23:25 PST"]
[Termination "The_Chess_Coach won by resignation"]

1. d4 {[%clk 0:03:01.9]} 1... Nf6 {[%clk 0:03:00.9]} 2. Bf4 {[%clk 0:03:02.6]}
2... g6 {[%clk 0:03:00.3]} 3. e3 {[%clk 0:03:03.9]} 3... Bg7 {[%clk 0:03:01.7]}
4. Nf3 {[%clk 0:03:05.6]} 4... O-O {[%clk 0:03:02.8]} 5. Be2 {[%clk 0:03:06.7]}
5... c5 {[%clk 0:03:04.2]} 6. c3 {[%clk 0:03:07.4]} 6... d5 {[%clk 0:03:05]} 7.
O-O {[%clk 0:03:06]} 7... Nc6 {[%clk 0:03:06.3]} 8. Nbd2 {[%clk 0:03:06.8]} 8...
b6 {[%clk 0:03:06.6]} 9. Qb3 {[%clk 0:03:05.9]} 9... c4 {[%clk 0:02:55.2]} 10.
Qd1 {[%clk 0:03:01.7]} 10... Bb7 {[%clk 0:02:47.7]} 11. Re1 {[%clk 0:03:02.1]}
11... Nh5 {[%clk 0:02:47.5]} 12. Bg3 {[%clk 0:03:01]} 12... Nxg3 {[%clk
0:02:47.6]} 13. hxg3 {[%clk 0:03:02.9]} 13... e5 {[%clk 0:02:46.2]} 14. dxe5
{[%clk 0:03:04.8]} 14... Nxe5 {[%clk 0:02:48.1]} 15. Nxe5 {[%clk 0:03:06.5]}
15... Bxe5 {[%clk 0:02:46.8]} 16. Nf3 {[%clk 0:03:08.4]} 16... Bg7 {[%clk
0:02:45]} 17. Nd4 {[%clk 0:03:09]} 17... Re8 {[%clk 0:02:43.3]} 18. Bf3 {[%clk
0:03:10]} 18... Qe7 {[%clk 0:02:28.8]} 19. Qd2 {[%clk 0:03:10.9]} 19... Rac8
{[%clk 0:02:28]} 20. Rad1 {[%clk 0:03:07.7]} 20... h5 {[%clk 0:02:25]} 21. a4
{[%clk 0:02:46.3]} 21... h4 {[%clk 0:02:17.8]} 22. gxh4 {[%clk 0:02:43.5]} 22...
Qxh4 {[%clk 0:02:19]} 23. g3 {[%clk 0:02:44.8]} 23... Qg5 {[%clk 0:02:15.2]} 24.
Kg2 {[%clk 0:02:45.1]} 24... Be5 {[%clk 0:02:10.5]} 25. Ne2 {[%clk 0:02:34.4]}
25... Rcd8 {[%clk 0:02:01]} 26. Nf4 {[%clk 0:02:31.7]} 26... Qe7 {[%clk
0:01:08.9]} 27. Nxd5 {[%clk 0:02:09.5]} 27... Qc5 {[%clk 0:00:54.5]} 28. e4
{[%clk 0:02:05]} 28... Kg7 {[%clk 0:00:50.2]} 29. Rh1 {[%clk 0:01:54.4]} 29...
Rh8 {[%clk 0:00:50.4]} 30. Rxh8 {[%clk 0:01:45.1]} 30... Rxh8 {[%clk 0:00:49]}
31. Rh1 {[%clk 0:01:46.7]} 31... Rxh1 {[%clk 0:00:47]} 32. Kxh1 {[%clk
0:01:48.6]} 32... Qa5 {[%clk 0:00:37.2]} 33. Qd1 {[%clk 0:01:24.2]} 33... Bc6
{[%clk 0:00:34.4]} 34. Ne7 {[%clk 0:00:59.3]} 34... Bxa4 {[%clk 0:00:32.2]} 35.
Qd8 {[%clk 0:01:00.8]} 35... Qc5 {[%clk 0:00:13]} 36. Qg8+ {[%clk 0:00:54.8]}
36... Kf6 {[%clk 0:00:13.8]} 37. Nd5+ {[%clk 0:00:55.4]} 37... Ke6 {[%clk
0:00:15.4]} 38. Qe8+ {[%clk 0:00:56.5]} 38... Bxe8 {[%clk 0:00:15]} 0-1

[Event "*** Titled Tuesday Blitz"]
[Site "Chess.com"]
[Date "2020.01.07"]
[Round "6"]
[White "szefru"]
[Black "guillembaches"]
[Result "0-1"]
[WhiteElo "2124"]
[BlackElo "2278"]
[TimeControl "180+2"]
[EndTime "14:23:27 PST"]
[Termination "guillembaches won by resignation"]

1. b3 {[%clk 0:03:01.9]} 1... d5 {[%clk 0:02:59]} 2. Bb2 {[%clk 0:03:02.5]} 2...
Bf5 {[%clk 0:03:00.1]} 3. g3 {[%clk 0:03:03.1]} 3... e6 {[%clk 0:03:01]} 4. Bg2
{[%clk 0:03:04.1]} 4... Nf6 {[%clk 0:03:01.8]} 5. e3 {[%clk 0:03:04.8]} 5... h6
{[%clk 0:03:02.3]} 6. Ne2 {[%clk 0:03:05.9]} 6... Be7 {[%clk 0:03:02.4]} 7. O-O
{[%clk 0:03:07.2]} 7... O-O {[%clk 0:03:02.8]} 8. d3 {[%clk 0:03:04.8]} 8... c6
{[%clk 0:03:01.7]} 9. Nd2 {[%clk 0:03:05.3]} 9... Bh7 {[%clk 0:03:02.1]} 10. h3
{[%clk 0:03:05.3]} 10... a5 {[%clk 0:03:03]} 11. a4 {[%clk 0:03:05.5]} 11...
Nbd7 {[%clk 0:03:02.7]} 12. f4 {[%clk 0:03:00]} 12... Qb6 {[%clk 0:02:52.7]} 13.
d4 {[%clk 0:02:57.6]} 13... c5 {[%clk 0:02:50.5]} 14. Kh2 {[%clk 0:02:57.2]}
14... Rac8 {[%clk 0:02:46]} 15. Rc1 {[%clk 0:02:40.3]} 15... c4 {[%clk
0:02:40.4]} 16. Nf3 {[%clk 0:02:26.5]} 16... Ne4 {[%clk 0:02:23.8]} 17. g4
{[%clk 0:02:13.3]} 17... cxb3 {[%clk 0:02:07.8]} 18. cxb3 {[%clk 0:02:10.2]}
18... Bb4 {[%clk 0:02:06.6]} 19. Ne5 {[%clk 0:01:55.4]} 19... Nxe5 {[%clk
0:02:02.8]} 20. fxe5 {[%clk 0:01:52.6]} 20... Nd2 {[%clk 0:01:46.6]} 21. Rf2
{[%clk 0:01:36.4]} 21... Qa6 {[%clk 0:01:33.8]} 22. Nf4 {[%clk 0:01:27.7]} 22...
Ne4 {[%clk 0:01:22]} 23. Bxe4 {[%clk 0:01:02.4]} 23... Bxe4 {[%clk 0:01:23.9]}
24. h4 {[%clk 0:00:54.5]} 24... b5 {[%clk 0:01:13.7]} 25. g5 {[%clk 0:00:44]}
25... hxg5 {[%clk 0:01:03.7]} 26. hxg5 {[%clk 0:00:42.6]} 26... bxa4 {[%clk
0:01:03.7]} 27. Qh5 {[%clk 0:00:36.5]} 27... Rxc1 {[%clk 0:00:51.5]} 28. Bxc1
{[%clk 0:00:35.3]} 28... Qc8 {[%clk 0:00:50.8]} 29. Bb2 {[%clk 0:00:16.4]} 29...
a3 {[%clk 0:00:47.2]} 30. Kg3 {[%clk 0:00:16.2]} 30... Be1 {[%clk 0:00:41.4]}
31. g6 {[%clk 0:00:13.9]} 31... Bxf2+ {[%clk 0:00:41.3]} 32. Kxf2 {[%clk
0:00:14.5]} 32... fxg6 {[%clk 0:00:41.7]} 33. Qh3 {[%clk 0:00:14.9]} 33... axb2
{[%clk 0:00:33.8]} 34. Kg3 {[%clk 0:00:15.4]} 34... b1=Q {[%clk 0:00:31.9]} 0-1

[Event "*** Titled Tuesday Blitz"]
[Site "Chess.com"]
[Date "2020.01.07"]
[Round "6"]
[White "chessbia"]
[Black "letantha"]
[Result "1-0"]
[WhiteElo "2190"]
[BlackElo "1797"]
[TimeControl "180+2"]
[EndTime "14:23:30 PST"]
[Termination "chessbia won by checkmate"]

1. Nf3 {[%clk 0:03:01.9]} 1... Nf6 {[%clk 0:03:00.3]} 2. e3 {[%clk 0:03:02.9]}
2... e6 {[%clk 0:03:01.5]} 3. c4 {[%clk 0:03:04.2]} 3... d5 {[%clk 0:02:59.5]}
4. b3 {[%clk 0:03:05.7]} 4... Be7 {[%clk 0:03:00.1]} 5. Bb2 {[%clk 0:03:07.3]}
5... O-O {[%clk 0:03:01.2]} 6. Nc3 {[%clk 0:03:08.9]} 6... c5 {[%clk 0:03:01.4]}
7. Ne2 {[%clk 0:03:04.1]} 7... Nc6 {[%clk 0:03:01.4]} 8. Nf4 {[%clk 0:02:59.1]}
8... d4 {[%clk 0:02:59.8]} 9. exd4 {[%clk 0:02:42.8]} 9... cxd4 {[%clk
0:02:57.9]} 10. Nd3 {[%clk 0:02:39.1]} 10... e5 {[%clk 0:02:19.1]} 11. Nfxe5
{[%clk 0:02:36.9]} 11... Nxe5 {[%clk 0:02:20.7]} 12. Nxe5 {[%clk 0:02:36.7]}
12... Re8 {[%clk 0:02:22.3]} 13. Nd3 {[%clk 0:02:32.8]} 13... Ba3+ {[%clk
0:02:12]} 14. Be2 {[%clk 0:02:33]} 14... Bxb2 {[%clk 0:02:13.3]} 15. Nxb2 {[%clk
0:02:33.8]} 15... d3 {[%clk 0:02:14.9]} 16. Nxd3 {[%clk 0:02:19]} 16... Qxd3
{[%clk 0:02:15.1]} 17. Kf1 {[%clk 0:02:20.7]} 17... Qd4 {[%clk 0:02:10.5]} 18.
Bf3 {[%clk 0:02:13.4]} 18... Bf5 {[%clk 0:02:04.8]} 19. h3 {[%clk 0:02:14]}
19... h5 {[%clk 0:02:01.3]} 20. Bxb7 {[%clk 0:02:09.6]} 20... Rad8 {[%clk
0:01:59.7]} 21. Bf3 {[%clk 0:02:04.1]} 21... h4 {[%clk 0:01:59]} 22. Kg1 {[%clk
0:02:04.1]} 22... Re7 {[%clk 0:01:19.9]} 23. Rc1 {[%clk 0:01:59.1]} 23... Rde8
{[%clk 0:01:17.5]} 24. Kh2 {[%clk 0:01:57.7]} 24... Qxf2 {[%clk 0:01:08.8]} 25.
Rf1 {[%clk 0:01:54.4]} 25... Qg3+ {[%clk 0:01:08.2]} 26. Kh1 {[%clk 0:01:55.8]}
26... Be4 {[%clk 0:00:59.6]} 27. d4 {[%clk 0:01:46.1]} 27... Bxf3 {[%clk
0:00:58.1]} 28. Qxf3 {[%clk 0:01:46.7]} 28... Qxf3 {[%clk 0:00:54.6]} 29. Rxf3
{[%clk 0:01:47.5]} 29... Re1+ {[%clk 0:00:53.4]} 30. Rf1 {[%clk 0:01:45]} 30...
Rxf1+ {[%clk 0:00:49.7]} 31. Rxf1 {[%clk 0:01:45.6]} 31... Ne4 {[%clk 0:00:51]}
32. Rc1 {[%clk 0:01:42.4]} 32... Ng3+ {[%clk 0:00:51.3]} 33. Kh2 {[%clk
0:01:43]} 33... f5 {[%clk 0:00:41.5]} 34. d5 {[%clk 0:01:40.2]} 34... Kf7 {[%clk
0:00:39]} 35. c5 {[%clk 0:01:41.1]} 35... Ke7 {[%clk 0:00:18.3]} 36. b4 {[%clk
0:01:41.5]} 36... Kd7 {[%clk 0:00:19.2]} 37. a4 {[%clk 0:01:38.9]} 37... f4
{[%clk 0:00:19.4]} 38. b5 {[%clk 0:01:36.8]} 38... Re2 {[%clk 0:00:19.8]} 39.
c6+ {[%clk 0:01:23]} 39... Kc8 {[%clk 0:00:20.9]} 40. d6 {[%clk 0:01:06.5]}
40... f3 {[%clk 0:00:20.9]} 41. d7+ {[%clk 0:01:07]} 41... Kc7 {[%clk
0:00:21.2]} 42. Rg1 {[%clk 0:01:03.5]} 42... f2 {[%clk 0:00:20]} 43. Rd1 {[%clk
0:01:03.6]} 43... f1=Q {[%clk 0:00:19.3]} 44. d8=Q# {[%clk 0:01:03.8]} 1-0

[Event "*** Titled Tuesday Blitz"]
[Site "Chess.com"]
[Date "2020.01.07"]
[Round "6"]
[White "StephenDedalus83"]
[Black "Majkelopulos"]
[Result "1-0"]
[WhiteElo "2714"]
[BlackElo "2532"]
[TimeControl "180+2"]
[EndTime "14:23:42 PST"]
[Termination "StephenDedalus83 won by resignation"]

1. g3 {[%clk 0:03:01.9]} 1... d5 {[%clk 0:03:00.5]} 2. Bg2 {[%clk 0:03:02.8]}
2... c6 {[%clk 0:02:58.5]} 3. d3 {[%clk 0:03:03.5]} 3... Bg4 {[%clk 0:02:59.3]}
4. Nd2 {[%clk 0:03:03.1]} 4... Nd7 {[%clk 0:02:59.9]} 5. h3 {[%clk 0:03:02.9]}
5... Bh5 {[%clk 0:03:00.5]} 6. f4 {[%clk 0:02:59.4]} 6... e6 {[%clk 0:02:49.6]}
7. Ngf3 {[%clk 0:02:57.7]} 7... Bc5 {[%clk 0:02:47.6]} 8. e4 {[%clk 0:02:57.6]}
8... Bxf3 {[%clk 0:02:42.1]} 9. Qxf3 {[%clk 0:02:57.1]} 9... Ne7 {[%clk
0:02:41.3]} 10. e5 {[%clk 0:02:50.3]} 10... h5 {[%clk 0:02:34.1]} 11. c3 {[%clk
0:02:50.3]} 11... Bb6 {[%clk 0:02:28.7]} 12. Nf1 {[%clk 0:02:39.3]} 12... c5
{[%clk 0:02:22.1]} 13. Bd2 {[%clk 0:02:36.6]} 13... Qc7 {[%clk 0:02:21.5]} 14.
Ne3 {[%clk 0:02:34.4]} 14... g6 {[%clk 0:02:20.8]} 15. c4 {[%clk 0:02:33.9]}
15... d4 {[%clk 0:02:12.9]} 16. Nc2 {[%clk 0:02:33.9]} 16... Qc6 {[%clk
0:02:02.3]} 17. a3 {[%clk 0:02:21.1]} 17... a5 {[%clk 0:01:59.6]} 18. O-O {[%clk
0:02:12]} 18... Qxf3 {[%clk 0:01:58.3]} 19. Bxf3 {[%clk 0:02:12.1]} 19... Ra7
{[%clk 0:01:45.6]} 20. b4 {[%clk 0:02:11.5]} 20... h4 {[%clk 0:01:43]} 21. g4
{[%clk 0:02:10.1]} 21... g5 {[%clk 0:01:43.7]} 22. fxg5 {[%clk 0:01:51]} 22...
Nxe5 {[%clk 0:01:43.5]} 23. Be4 {[%clk 0:01:51.7]} 23... O-O {[%clk 0:01:13.5]}
24. Rfb1 {[%clk 0:01:31.5]} 24... axb4 {[%clk 0:00:57.5]} 25. axb4 {[%clk
0:01:31.6]} 25... Rxa1 {[%clk 0:00:58.8]} 26. Nxa1 {[%clk 0:01:31.3]} 26... f5
{[%clk 0:00:48.9]} 27. gxf6 {[%clk 0:01:30.4]} 27... Rxf6 {[%clk 0:00:48.8]} 28.
bxc5 {[%clk 0:01:28.5]} 28... Bxc5 {[%clk 0:00:50.7]} 29. Kg2 {[%clk 0:01:21.8]}
29... b6 {[%clk 0:00:50.1]} 30. Nb3 {[%clk 0:01:21.4]} 30... N7g6 {[%clk
0:00:49.5]} 31. Nxc5 {[%clk 0:01:21.8]} 31... bxc5 {[%clk 0:00:51.4]} 32. Rb5
{[%clk 0:01:22.5]} 32... Nf4+ {[%clk 0:00:35.8]} 33. Bxf4 {[%clk 0:01:23]} 33...
Rxf4 {[%clk 0:00:37.7]} 34. Rxc5 {[%clk 0:01:24.5]} 34... Nf7 {[%clk 0:00:38.8]}
35. Rh5 {[%clk 0:01:21.8]} 35... Nd6 {[%clk 0:00:36.9]} 36. Bf3 {[%clk
0:01:18.7]} 36... Kg7 {[%clk 0:00:34.6]} 37. Rxh4 {[%clk 0:01:18.4]} 37... e5
{[%clk 0:00:35.9]} 38. Rh5 {[%clk 0:01:19.2]} 38... e4 {[%clk 0:00:37]} 39. Bxe4
{[%clk 0:01:20.1]} 39... Nxe4 {[%clk 0:00:38]} 40. dxe4 {[%clk 0:01:21.5]} 40...
Rxe4 {[%clk 0:00:39.9]} 41. Rd5 {[%clk 0:01:22.4]} 41... d3 {[%clk 0:00:37.6]}
42. Rxd3 {[%clk 0:01:22.2]} 42... Rxc4 {[%clk 0:00:38.9]} 43. Kg3 {[%clk
0:01:23.7]} 43... Rb4 {[%clk 0:00:39.8]} 44. h4 {[%clk 0:01:24.7]} 44... Ra4
{[%clk 0:00:41.2]} 45. h5 {[%clk 0:01:25.5]} 45... Ra1 {[%clk 0:00:41.5]} 46.
Kh4 {[%clk 0:01:26.4]} 46... Ra5 {[%clk 0:00:41.9]} 47. Rd4 {[%clk 0:01:25.5]}
47... Rb5 {[%clk 0:00:42]} 48. g5 {[%clk 0:01:26.1]} 48... Rb1 {[%clk
0:00:42.1]} 49. Rd7+ {[%clk 0:01:26.9]} 49... Kg8 {[%clk 0:00:43.3]} 50. h6
{[%clk 0:01:28]} 50... Ra1 {[%clk 0:00:40.8]} 51. Kh5 {[%clk 0:01:28.8]} 51...
Ra6 {[%clk 0:00:41.2]} 52. g6 {[%clk 0:01:24.1]} 52... Ra5+ {[%clk 0:00:41.9]}
53. Kg4 {[%clk 0:01:25.2]} 53... Ra4+ {[%clk 0:00:42.6]} 54. Kf5 {[%clk
0:01:25.3]} 54... Ra5+ {[%clk 0:00:43.9]} 55. Ke6 {[%clk 0:01:25.6]} 55... Ra6+
{[%clk 0:00:44.9]} 56. Rd6 {[%clk 0:01:26.3]} 56... Ra8 {[%clk 0:00:46.2]} 57.
Ke7 {[%clk 0:01:26.8]} 57... Ra7+ {[%clk 0:00:47.1]} 58. Rd7 {[%clk 0:01:27.6]}
1-0

[Event "*** Titled Tuesday Blitz"]
[Site "Chess.com"]
[Date "2020.01.07"]
[Round "6"]
[White "MikeSailer"]
[Black "Induwara_IM"]
[Result "0-1"]
[WhiteElo "2112"]
[BlackElo "2378"]
[TimeControl "180+2"]
[EndTime "14:23:49 PST"]
[Termination "Induwara_IM won on time"]

1. b4 {[%clk 0:03:01.9]} 1... c6 {[%clk 0:02:56.7]} 2. Bb2 {[%clk 0:02:55.8]}
2... Qb6 {[%clk 0:02:57.2]} 3. a3 {[%clk 0:02:55.9]} 3... a5 {[%clk 0:02:57.7]}
4. e3 {[%clk 0:02:57.1]} 4... axb4 {[%clk 0:02:58.3]} 5. Bd4 {[%clk 0:02:58]}
5... c5 {[%clk 0:02:58.6]} 6. Bxc5 {[%clk 0:02:58.3]} 6... Qf6 {[%clk
0:02:46.8]} 7. Bd4 {[%clk 0:02:56]} 7... e5 {[%clk 0:02:46.7]} 8. axb4 {[%clk
0:02:46.9]} 8... Rxa1 {[%clk 0:02:43.5]} 9. Bxa1 {[%clk 0:02:47.3]} 9... Bxb4
{[%clk 0:02:44.9]} 10. Nf3 {[%clk 0:02:43.8]} 10... Nc6 {[%clk 0:02:45.4]} 11.
Bb5 {[%clk 0:02:43.1]} 11... Nge7 {[%clk 0:02:45.7]} 12. O-O {[%clk 0:02:41.7]}
12... O-O {[%clk 0:02:46.4]} 13. d4 {[%clk 0:02:41.4]} 13... d6 {[%clk
0:02:45.9]} 14. c3 {[%clk 0:02:13.4]} 14... Ba5 {[%clk 0:02:45.9]} 15. Qa4
{[%clk 0:02:14.1]} 15... Bc7 {[%clk 0:02:44.7]} 16. Nbd2 {[%clk 0:01:56.5]}
16... Bg4 {[%clk 0:02:41.6]} 17. h3 {[%clk 0:01:36.5]} 17... Bh5 {[%clk
0:02:20.6]} 18. c4 {[%clk 0:01:23.3]} 18... Bg6 {[%clk 0:02:11.1]} 19. Bxc6
{[%clk 0:01:16.8]} 19... bxc6 {[%clk 0:02:10.7]} 20. dxe5 {[%clk 0:01:10.9]}
20... dxe5 {[%clk 0:02:11.2]} 21. Qa7 {[%clk 0:01:11.1]} 21... Bb8 {[%clk
0:02:09.2]} 22. Qd7 {[%clk 0:01:07.2]} 22... Bf5 {[%clk 0:02:06.1]} 23. Qb7
{[%clk 0:01:03.1]} 23... Qe6 {[%clk 0:01:52]} 24. Ng5 {[%clk 0:00:55.7]} 24...
Qc8 {[%clk 0:01:49]} 25. Qxe7 {[%clk 0:00:52.5]} 25... Bg6 {[%clk 0:01:09.9]}
26. Ngf3 {[%clk 0:00:38.9]} 26... Re8 {[%clk 0:01:08.1]} 27. Qc5 {[%clk
0:00:36.1]} 27... f6 {[%clk 0:01:06.4]} 28. Rc1 {[%clk 0:00:26.9]} 28... Qd7
{[%clk 0:01:06.7]} 29. Nf1 {[%clk 0:00:27.5]} 29... Ba7 {[%clk 0:01:07.6]} 30.
Qa5 {[%clk 0:00:26.9]} 30... h5 {[%clk 0:01:08.3]} 31. Qd2 {[%clk 0:00:21.2]}
31... Qe6 {[%clk 0:01:07.5]} 32. Rd1 {[%clk 0:00:20.8]} 32... Bf5 {[%clk
0:01:06.6]} 33. Qd6 {[%clk 0:00:20.2]} 33... Qxc4 {[%clk 0:01:05.4]} 34. N1d2
{[%clk 0:00:14.4]} 34... Qa4 {[%clk 0:01:04.8]} 35. Bc3 {[%clk 0:00:12.3]} 35...
Qxd1+ {[%clk 0:01:05]} 36. Kh2 {[%clk 0:00:12.9]} 36... e4 {[%clk 0:01:04.2]}
37. Nd4 {[%clk 0:00:12.3]} 37... Bb8 {[%clk 0:01:04.8]} 38. Nxf5 {[%clk
0:00:10.3]} 38... Rd8 {[%clk 0:01:04.8]} 39. Ne7+ {[%clk 0:00:06]} 39... Kf7
{[%clk 0:01:05]} 40. Qxb8 {[%clk 0:00:05]} 40... Rxb8 {[%clk 0:01:06.1]} 41.
Nxc6 {[%clk 0:00:06]} 41... Rc8 {[%clk 0:01:07.4]} 42. Nxe4 {[%clk 0:00:04.5]}
42... Rxc6 {[%clk 0:01:08]} 43. Bd4 {[%clk 0:00:04.9]} 43... Qf1 {[%clk
0:01:07.2]} 44. Ng3 {[%clk 0:00:04.9]} 44... Qxf2 {[%clk 0:01:08]} 45. Nxh5
{[%clk 0:00:05.3]} 45... Rc2 {[%clk 0:01:08.2]} 46. Nf4 {[%clk 0:00:05.6]} 46...
g5 {[%clk 0:01:09]} 47. e4 {[%clk 0:00:07]} 47... Qxf4+ {[%clk 0:01:09.6]} 0-1